bitfinex-derivatives/quotes_SOLF0:USTF0_20260311
["timestamp","ask_amount","ask_price","bid_price","bid_amount"]
[1773222872089,10.574,85.107,85.065,18.42712049]
[1773222875992,2.82779353,85.1,85.065,18.42712049]
[1773222877291,10.575,85.099,85.065,18.42712049]
[1773222879494,10.574,85.106,85.065,18.42712049]
[1773222879691,2.82779353,85.12,85.075,18.42591899]
[1773222880288,2.82779353,85.11,85.075,18.42591899]
[1773222880695,2.82779353,85.11,85.078,10.577]
[1773222880896,2.82779353,85.11,85.079,18.43369819]
[1773222881895,13.39979353,85.12,85.082,18.43369819]
[1773222883498,13.39979353,85.12,85.07,2.82779353]
[1773222883499,10.571,85.13,85.09,18.43951364]
[1773222883787,13.39879353,85.13,85.09,18.43951364]
[1773222884697,10.572,85.123,85.09,18.43951364]
[1773222884895,2.82779353,85.12,85.09,18.43951364]
[1773222885696,10.573,85.118,85.076,18.45787026]
[1773222887391,10.573,85.118,85.078,18.45655854]
[1773222888501,10.573,85.118,85.08,18.45655854]
[1773222892203,9.72126042,85.117,85.08,18.45655854]
[1773222892404,9.72126042,85.116,85.08,18.45655854]
[1773222892702,9.72126042,85.115,85.08,18.45655854]
[1773222892905,10.573,85.118,85.08,18.45655854]
[1773222893101,9.72130167,85.117,85.08,18.45655854]
[1773222893303,9.72130167,85.116,85.089,0.07405034]
[1773222893501,10.573,85.118,85.089,0.07405034]
[1773222893701,9.72062622,85.117,85.089,0.07405034]
[1773222893903,9.72062622,85.116,85.089,0.07405034]
[1773222894099,10.573,85.118,85.089,0.07405034]
[1773222894303,9.72003097,85.117,85.089,0.07405034]
[1773222894504,9.72003097,85.116,85.089,0.07405034]
[1773222894707,10.573,85.118,85.089,0.07405034]
[1773222894906,9.72005057,85.117,85.089,0.07405034]
[1773222895101,9.72005057,85.116,85.089,0.07405034]
[1773222895394,10.573,85.118,85.089,0.07405034]
[1773222895598,9.71955473,85.117,85.089,0.07405034]
[1773222895803,9.71955473,85.116,85.089,0.07405034]
[1773222896004,10.573,85.118,85.089,0.07405034]
[1773222896204,9.71955473,85.117,85.089,0.07405034]
[1773222896400,9.71955473,85.116,85.089,0.07405034]
[1773222896596,10.573,85.118,85.089,0.07405034]
[1773222896799,9.72017293,85.117,85.089,0.07405034]
[1773222897001,9.72017293,85.116,85.089,0.07405034]
[1773222897300,10.573,85.118,85.089,0.07405034]
[1773222897499,9.72202744,85.117,85.089,0.07405034]
[1773222897704,10.573,85.115,85.089,0.07405034]
[1773222898099,9.72088614,85.114,85.089,0.07405034]
[1773222898303,9.72088614,85.113,85.089,0.07405034]
[1773222898503,9.72088614,85.112,85.089,0.07405034]
[1773222898699,2.82779353,85.12,85.089,0.07405034]
[1773222898900,9.72177787,85.119,85.089,0.07405034]
[1773222899103,10.79073694,85.137,85.089,18.53632346]
[1773222899305,21.133,85.169,85.097,18.46188418]
[1773222899306,2.82779353,85.14,85.097,18.46188418]
[1773222900103,10.57,85.137,85.099,18.46188418]
[1773222900308,2.82779353,85.15,85.099,18.46188418]
[1773222901403,46.00073694,85.168,85.111,18.46560496]
[1773222901606,46.00073694,85.168,85.045,164.609]
[1773222901607,2.82779353,85.18,85.121,18.46560496]
[1773222901802,2.82779353,85.17,85.121,18.46560496]
[1773222902003,13.39479353,85.16,85.121,18.46560496]
[1773222903608,35.21,85.188,85.112,18.49224545]
[1773222903609,2.82779353,85.15,85.112,18.49224545]
[1773222904500,2.82779353,85.15,85.109,10.574]
[1773222904501,164.419,85.144,85.016,18.51038162]
[1773222904699,2.82779353,85.05,85.002,18.51038162]
[1773222905115,11.82,85.069,84.981,2.04579524]
[1773222905116,2.82779353,85.06,85.011,18.51038162]
[1773222906012,2.82779353,85.06,85.012,18.51038162]
[1773222906208,10.79073694,85.098,85.012,18.51038162]
[1773222906409,21.145,85.12,84.981,2.04579524]
[1773222906410,2.82779353,85.08,85.021,18.51038162]
[1773222907508,2.82779353,85.08,85.033,18.62087847]
[1773222908408,2.82779353,85.08,85.048,0.07418502]
[1773222908912,2.82779353,85.07,85.048,0.07418502]
[1773222909107,2.82779353,85.08,85.048,0.07418502]
[1773222909515,2.82779353,85.08,85.033,18.62087847]
[1773222909814,2.82779353,85.08,85.001,35.21]
[1773222909815,2.82779353,85.06,85.011,18.64538919]
[1773222910215,2.82779353,85.07,85.021,18.64538919]
[1773222912516,2.82779353,85.08,85.025,18.65638812]
[1773222912922,2.82779353,85.06,85.025,18.65638812]
[1773222914623,10.578,85.077,85.025,18.65638812]
[1773222914624,2.82779353,85.08,85.025,18.65638812]
[1773222914826,2.82779353,85.08,84.962,164.77]
[1773222914827,2.82779353,85.08,85.031,18.67312804]
[1773222915127,2.82779353,85.09,85.041,18.67312804]
[1773222916026,2.82779353,85.09,85.04,2.82779353]
[1773222916027,2.82779353,85.09,85.05,18.67312804]
[1773222918427,10.576,85.088,85.05,18.67312804]
[1773222918623,2.82779353,85.08,85.05,18.67312804]
[1773222921234,2.82779353,85.09,85.052,18.6675097]
[1773222922032,2.82779353,85.08,85.052,18.6675097]
[1773222923335,2.82779353,85.08,85.038,18.66303516]
[1773222924427,10.577,85.079,85.038,18.66303516]
[1773222925837,2.82779353,85.07,85.038,18.66303516]
[1773222927541,2.82970131,85.08,85.038,18.66303516]
[1773222930840,10.578,85.078,85.038,18.66303516]
[1773222931036,2.82970131,85.07,85.038,18.66303516]
[1773222931636,10.578,85.078,85.038,18.66303516]
[1773222935643,10.578,85.078,85.049,0.0743279]
[1773222936943,2.82970131,85.08,85.049,0.0743279]
[1773222936944,10.579,85.069,85.049,0.0743279]
[1773222937344,2.82970131,85.07,85.049,0.0743279]
[1773222938545,2.82970131,85.08,85.049,0.0743279]
[1773222940349,10.578,85.077,85.049,0.0743279]
[1773222940849,2.82970131,85.08,85.049,0.0743279]
[1773222940850,10.578,85.071,85.049,0.0743279]
[1773222941149,2.82970131,85.08,85.049,18.74223804]
[1773222941349,2.82970131,85.09,85.049,18.74223804]
[1773222941946,2.82970131,85.09,85.049,18.66791014]
[1773222942344,10.577,85.084,85.051,18.66791014]
[1773222942539,2.82970131,85.08,85.031,18.668375]
[1773222943343,2.82970131,85.06,85.037,18.668375]
[1773222944147,2.82970131,85.06,85.007,11.82]
[1773222944148,10.58,85.055,85.016,10.585]
[1773222945941,10.58,85.055,85.01,2.82970131]
[1773222945942,2.82970131,85.06,85.022,10.584]
[1773222946148,2.82970131,85.06,85.023,9.77852155]
[1773222947450,2.82970131,85.06,85.025,9.76499755]
[1773222948245,10.58,85.059,85.025,9.76499755]
[1773222949749,2.82970131,85.05,85.012,9.76920124]
[1773222951454,10.58,85.055,85.014,9.68134588]
[1773222952457,10.58,85.055,85.02,9.68134588]
[1773222956859,10.582,85.042,85.005,9.64147425]
[1773222957365,10.582,85.042,84.945,35.21]
[1773222957366,10.87960836,85.031,84.966,10.66437187]
[1773222957562,2.82970131,85.03,84.971,10.66423936]
[1773222958258,14.50614448,85.068,84.982,10.66423936]
[1773222958259,2.82970131,85.04,84.982,10.66423936]
[1773222958463,2.82970131,85.04,84.993,10.66294968]
[1773222959967,2.82970131,85.03,84.993,10.66294968]
[1773222960359,10.583,85.031,84.993,10.66294968]
[1773222960863,2.82970131,85.03,84.971,10.56489639]
[1773222961064,2.82970131,85.04,84.981,10.56489639]
[1773222962362,10.583,85.032,84.986,10.56461251]
[1773222963369,2.82970131,85.05,85.0,2.82970131]
[1773222963662,2.82970131,85.05,84.991,10.54916327]
[1773222964261,2.82970131,85.05,85.004,10.54885734]
[1773222964460,2.82970131,85.05,85.012,10.62304312]
[1773222964968,13.40970131,85.06,85.012,10.62304312]
[1773222965570,13.40970131,85.06,85.012,10.54885734]
[1773222968166,10.58,85.06,85.015,10.55679785]
[1773222968374,13.40970131,85.06,85.015,10.55679785]
[1773222969471,13.40970131,85.06,85.017,10.55487941]
[1773222973170,13.40970131,85.06,85.03,0.07419275]
[1773222981078,2.82970131,85.05,85.03,0.07419275]
[1773222981883,10.581,85.054,85.03,0.07419275]
[1773222985085,9.70489631,85.053,85.03,0.07419275]
[1773222985284,10.581,85.054,85.03,0.07419275]
[1773222985485,9.70530365,85.053,85.03,0.07419275]
[1773222985688,10.581,85.054,85.03,0.07419275]
[1773222985890,9.70530365,85.053,85.03,0.07419275]
[1773222986189,9.70700911,85.052,85.03,0.07419275]
[1773222986391,13.40970131,85.06,85.03,0.07419275]
[1773222986586,2.82970131,85.08,85.03,10.648198]
[1773222986790,9.70932922,85.079,85.03,10.648198]
[1773222986990,9.70932922,85.078,85.03,10.648198]
[1773222987192,2.82970131,85.07,85.03,10.57400525]
[1773222987392,2.82970131,85.06,84.996,32.996]
[1773222987591,2.82970131,85.06,84.914,164.862]
[1773222987592,10.583,85.031,85.001,10.57382066]
[1773222987893,2.82970131,85.04,85.001,10.57382066]
[1773222988088,2.82970131,85.04,85.019,0.07432039]
[1773222988888,2.82970131,85.03,85.001,10.57382066]
[1773222989288,2.82970131,85.03,84.97,2.82970131]
[1773222989591,11.82,85.051,84.971,10.57480068]
[1773222989592,2.83316195,85.02,84.971,10.57480068]
[1773222990184,2.83316195,85.02,84.977,10.57462036]
[1773222990391,2.83316195,85.02,84.967,0.00069498]
[1773222990392,2.83316195,85.01,84.967,0.00069498]
[1773222990585,2.83316195,85.0,84.967,0.00069498]
[1773222991593,2.83316195,85.01,84.967,0.00069498]
[1773222991989,2.83316195,85.0,84.967,0.00069498]
[1773222992293,2.83316195,85.01,84.967,0.00069498]
[1773222993395,10.586,85.008,84.967,0.00069498]
[1773222994794,10.586,85.008,84.968,10.55881107]
[1773222995195,10.587,85.002,84.968,10.55881107]
[1773222995490,2.83316195,85.02,84.968,10.55881107]
[1773222996394,10.585,85.019,84.975,21.14862568]
[1773222996596,10.585,85.019,84.976,10.5771049]
[1773223000498,0.07500183,85.006,84.976,10.5771049]
[1773223000695,0.07500183,85.006,84.978,10.62501948]
[1773223002004,0.07500183,85.006,84.905,11.75]
[1773223002005,2.83316195,84.99,84.826,165.034]
[1773223002303,0.07500183,85.006,84.84,2.83316195]
[1773223002304,2.04858321,84.888,84.84,2.83316195]
[1773223002506,2.04858321,84.888,84.858,10.605]
[1773223002698,2.04858321,84.888,84.763,165.156]
[1773223002699,2.83316195,84.88,84.763,165.156]
[1773223002899,35.21,84.882,84.718,165.244]
[1773223003099,2.83316195,84.85,84.756,35.21]
[1773223003300,2.83316195,84.82,84.712,11.75]
[1773223003505,1.80382686,84.888,84.747,11.82]
[1773223003506,2.83316195,84.83,84.747,11.82]
[1773223003705,2.83316195,84.83,84.77,2.83316195]
[1773223004001,2.83316195,84.81,84.771,6.33644377]
[1773223004203,11.82,84.837,84.756,6.33644377]
[1773223004404,2.83316195,84.78,84.738,6.33644377]
[1773223004599,10.61,84.82,84.738,6.33644377]
[1773223004802,9.55054212,84.871,84.738,6.33644377]
[1773223005104,2.83316195,84.82,84.755,20.153852]
[1773223005405,2.83316195,84.8,84.755,20.153852]
[1773223005605,164.943,84.874,84.755,20.153852]
[1773223005606,11.84,84.821,84.755,20.153852]
[1773223005810,35.21,84.836,84.756,6.41044958]
[1773223006108,35.21,84.829,84.755,13.74339186]
[1773223006410,7.62807582,84.81,84.755,4.38339186]
[1773223006803,164.942,84.874,84.755,4.38339186]
[1773223006804,10.609,84.822,84.755,4.38339186]
[1773223007115,7.62807582,84.85,84.756,6.69820076]
[1773223007308,11.84,84.849,84.756,6.69820076]
[1773223007510,11.84,84.849,84.771,6.69881014]
[1773223008412,11.84,84.849,84.771,4.89498328]
[1773223008916,11.84,84.856,84.774,10.615]
[1773223009310,11.84,84.856,84.77,7.62807582]
[1773223010210,11.84,84.856,84.79,7.62807582]
[1773223010412,2.05166904,84.886,84.791,5.80646129]
[1773223010612,11.84,84.898,84.811,5.82801147]
[1773223010813,7.62807582,84.89,84.781,5.82801147]
[1773223011009,10.603,84.871,84.784,5.82801147]
[1773223011409,11.84,84.889,84.784,5.82801147]
[1773223012316,10.602,84.885,84.785,10.614]
[1773223012508,7.62807582,84.87,84.786,5.82801147]
[1773223012905,7.62807582,84.87,84.789,10.614]
[1773223013115,11.84,84.871,84.789,10.614]
[1773223013116,11.84,84.871,84.79,5.83863598]
[1773223013807,10.604,84.867,84.791,5.83863598]
[1773223014209,7.62807582,84.84,84.756,5.83863598]
[1773223014406,35.4,84.833,84.756,5.83863598]
[1773223015121,46.009,84.827,84.756,5.83863598]
[1773223017018,10.612,84.802,84.72,8.195502]
[1773223017311,7.62807582,84.82,84.664,21.259]
[1773223017312,47.24,84.807,84.731,8.195502]
[1773223017815,10.611,84.806,84.737,8.195502]
[1773223018012,35.4,84.805,84.737,8.195502]
[1773223018613,10.613,84.794,84.737,8.195502]
[1773223019418,10.613,84.794,84.682,35.4]
[1773223019419,10.614,84.787,84.722,8.16609307]
[1773223019815,35.4,84.799,84.706,8.16609307]
[1773223020119,165.038,84.825,84.669,2.05346685]
[1773223020120,35.4,84.759,84.669,2.05346685]
[1773223020418,7.62807582,84.74,84.653,8.16609307]
[1773223020916,7.62807582,84.74,84.653,8.21488043]
[1773223021318,10.623,84.717,84.653,8.21488043]
[1773223021518,7.62807582,84.76,84.671,8.21488043]
[1773223021920,7.62807582,84.78,84.673,8.21488043]
[1773223022215,7.62807582,84.78,84.681,8.21488043]
[1773223022420,10.619,84.75,84.681,8.21488043]
[1773223022622,11.84,84.782,84.7,7.62807582]
[1773223022918,7.62807582,84.79,84.701,8.14785338]
[1773223023713,10.617,84.762,84.701,8.14785338]
[1773223023914,35.4,84.769,84.681,8.14785338]
[1773223024121,7.62807582,84.75,84.681,8.14785338]
[1773223024320,7.62807582,84.77,84.681,8.14785338]
[1773223024321,11.84,84.767,84.681,8.14785338]
[1773223025020,10.619,84.748,84.681,8.14785338]
[1773223026117,10.617,84.76,84.683,8.02794844]
[1773223026423,7.62807582,84.79,84.683,8.02794844]
[1773223026824,10.617,84.76,84.69,8.11336612]
[1773223028420,10.617,84.76,84.693,8.11336612]
[1773223028821,10.616,84.771,84.701,8.10932166]
[1773223029215,43.02807582,84.79,84.701,8.10932166]
[1773223030625,10.617,84.764,84.701,8.10932166]
[1773223030825,43.02807582,84.79,84.701,8.10932166]
[1773223032323,43.02807582,84.79,84.702,10.624]
[1773223032324,10.615,84.774,84.702,10.624]
[1773223032527,10.615,84.774,84.703,8.08539459]
[1773223033030,10.617,84.766,84.708,8.09419297]
[1773223033921,43.02807582,84.79,84.708,8.09419297]
[1773223034122,43.02807582,84.77,84.692,8.09419297]
[1773223034323,35.4,84.749,84.661,8.09419297]
[1773223035222,10.62,84.736,84.669,8.07301843]
[1773223036027,10.619,84.745,84.683,8.07301843]
[1773223036420,10.62,84.736,84.683,8.07301843]
[1773223036921,35.4,84.769,84.686,8.09227625]
[1773223038126,35.4,84.765,84.667,8.09227625]
[1773223038327,10.621,84.729,84.669,8.09227625]
[1773223039329,10.62,84.737,84.678,8.08398703]
[1773223040123,10.621,84.73,84.678,8.08398703]
[1773223043227,7.62807582,84.77,84.678,8.08398703]
[1773223043228,10.622,84.72,84.678,8.08398703]
[1773223044229,10.622,84.72,84.662,18.65190691]
[1773223044432,10.622,84.72,84.663,8.02290691]
[1773223044837,10.622,84.72,84.666,8.05595455]
[1773223045435,7.62807582,84.73,84.666,8.05595455]
[1773223045828,10.623,84.712,84.666,8.05595455]
[1773223046135,7.62807582,84.73,84.666,8.05595455]
[1773223047436,10.623,84.711,84.666,8.05595455]
[1773223047832,10.624,84.704,84.666,8.05595455]
[1773223048138,7.62807582,84.73,84.666,8.05595455]
[1773223048731,35.4,84.745,84.666,8.05595455]
[1773223049136,35.4,84.749,84.668,8.07720527]
[1773223049439,35.4,84.744,84.668,8.07720527]
[1773223050332,35.4,84.749,84.668,8.07720527]
[1773223051338,10.623,84.718,84.668,8.07720527]
[1773223051734,35.4,84.749,84.668,8.07720527]
[1773223051935,10.622,84.72,84.674,8.08586946]
[1773223053933,10.622,84.72,84.678,8.10255628]
[1773223055241,10.621,84.727,84.68,8.10935224]
[1773223055638,10.62,84.738,84.68,8.10935224]
[1773223055844,11.84,84.759,84.691,8.10935224]
[1773223056240,10.621,84.73,84.691,8.10935224]
[1773223057839,9.66053108,84.759,84.691,8.10935224]
[1773223058040,9.66053108,84.758,84.691,8.10935224]
[1773223058235,10.622,84.726,84.691,8.10935224]
[1773223059537,10.621,84.729,84.691,8.10935224]
[1773223059938,10.621,84.729,84.671,8.13096834]
[1773223060442,10.621,84.729,84.684,8.13096834]
[1773223062443,10.62,84.736,84.689,8.13215072]
[1773223062648,35.4,84.761,84.689,8.13215072]
[1773223062843,9.73030963,84.76,84.689,8.13215072]
[1773223063048,9.73030963,84.759,84.69,8.13215072]
[1773223063246,7.64209606,84.75,84.675,8.13215072]
[1773223063447,9.73030963,84.749,84.675,8.13215072]
[1773223063648,9.73030963,84.748,84.675,8.13215072]
[1773223063848,9.73030963,84.747,84.675,8.13215072]
[1773223064050,10.621,84.732,84.689,8.13215072]
[1773223065438,10.621,84.732,84.692,18.75889043]
[1773223065644,10.62,84.739,84.693,8.13289043]
[1773223066042,9.74233469,84.738,84.693,8.13289043]
[1773223066348,10.56819309,84.758,84.693,8.13289043]
[1773223066544,9.74361274,84.757,84.693,8.13289043]
[1773223066744,9.74361274,84.756,84.693,8.13289043]
[1773223066950,9.74361274,84.755,84.693,8.13289043]
[1773223067150,9.74361274,84.754,84.693,8.13289043]
[1773223067351,10.62,84.734,84.693,8.13289043]
[1773223067548,35.4,84.719,84.638,8.13933037]
[1773223067751,10.56819309,84.707,84.638,8.13933037]
[1773223068050,7.64209606,84.72,84.641,8.13933037]
[1773223068051,9.74141322,84.706,84.641,8.13933037]
[1773223068248,7.64209606,84.72,84.643,8.13933037]
[1773223068450,9.74030129,84.719,84.643,8.13933037]
[1773223068649,9.74030129,84.718,84.643,8.13933037]
[1773223068853,35.4,84.731,84.643,8.13933037]
[1773223068854,9.74030129,84.717,84.643,8.13933037]
[1773223069151,9.74030129,84.716,84.643,8.13933037]
[1773223069450,10.624,84.706,84.662,8.14835604]
[1773223070445,18.21028915,84.74,84.665,8.14223763]
[1773223070653,9.73911018,84.739,84.666,8.14223763]
[1773223070847,9.73911018,84.738,84.666,8.14223763]
[1773223071044,9.73911018,84.737,84.666,8.14223763]
[1773223071247,9.73911018,84.736,84.666,8.14223763]
[1773223071448,10.622,84.723,84.68,8.14223763]
[1773223072752,10.623,84.716,84.68,8.14223763]
[1773223075861,7.64209606,84.75,84.68,8.14223763]
[1773223075862,10.622,84.724,84.68,8.14223763]
[1773223077456,7.64209606,84.75,84.68,8.14223763]
[1773223077668,2.85313935,84.73,84.68,8.14223763]
[1773223077867,9.74545603,84.729,84.682,8.09100744]
[1773223078068,10.62,84.737,84.691,8.09100744]
[1773223078471,2.85313935,84.75,84.694,8.09100744]
[1773223078670,9.75219381,84.749,84.694,8.09100744]
[1773223078866,9.75219381,84.748,84.694,8.09100744]
[1773223079070,2.85313935,84.75,84.694,8.09100744]
[1773223079071,2.85313935,84.74,84.694,8.09100744]
[1773223079274,9.75219381,84.739,84.694,8.09100744]
[1773223079477,2.85313935,84.74,84.698,10.625]
[1773223079677,9.75247208,84.739,84.694,8.09100744]
[1773223079971,2.85313935,84.75,84.694,8.09100744]
[1773223080175,2.85313935,84.74,84.694,8.09100744]
[1773223080373,10.62,84.738,84.694,8.09100744]
[1773223080874,2.85313935,84.74,84.696,8.13185173]
[1773223081176,9.75228652,84.739,84.696,8.13185173]
[1773223081375,10.619,84.745,84.696,8.13185173]
[1773223081672,10.62,84.74,84.7,2.85313935]
[1773223081872,9.752397,84.739,84.701,8.13185173]
[1773223082069,2.85313935,84.76,84.711,8.13185173]
[1773223082275,20.37391387,84.759,84.713,8.13185173]
[1773223082472,9.75691387,84.758,84.713,8.13185173]
[1773223082777,10.618,84.755,84.714,8.12293006]
[1773223084074,2.85313935,84.76,84.714,8.12293006]
[1773223084275,9.75229924,84.759,84.714,8.12293006]
[1773223084468,9.75229924,84.758,84.714,8.12293006]
[1773223084673,10.619,84.747,84.714,8.12293006]
[1773223085477,10.618,84.755,84.714,8.12293006]
[1773223085674,2.85313935,84.76,84.714,8.12293006]
[1773223085871,9.75016023,84.759,84.701,8.11413167]
[1773223086073,2.85313935,84.76,84.7,2.85313935]
[1773223086279,10.619,84.745,84.703,10.624]
[1773223086577,2.85313935,84.76,84.71,2.85313935]
[1773223087475,10.56819309,84.78,84.71,2.85313935]
[1773223087476,2.85313935,84.77,84.71,2.85313935]
[1773223087677,10.618,84.753,84.72,2.85313935]
[1773223088175,10.617,84.761,84.72,2.85313935]
[1773223090177,10.616,84.77,84.72,2.85313935]
[1773223090779,10.617,84.758,84.72,2.85313935]
[1773223090979,2.85313935,84.77,84.72,2.85313935]
[1773223091376,35.4,84.798,84.72,2.85313935]
[1773223091582,2.85313935,84.77,84.72,2.85313935]
[1773223091976,2.85313935,84.78,84.73,2.85313935]
[1773223092176,9.72124136,84.779,84.73,2.85313935]
[1773223092376,2.85313935,84.78,84.73,2.85313935]
[1773223092377,9.72124136,84.778,84.73,2.85313935]
[1773223092576,2.85313935,84.78,84.73,2.85313935]
[1773223092777,9.71868104,84.779,84.73,2.85313935]
[1773223092973,9.71868104,84.778,84.73,2.85313935]
[1773223093178,2.85313935,84.79,84.74,2.85313935]
[1773223093379,2.85313935,84.78,84.73,2.85313935]
[1773223093579,0.33651038,84.755,84.73,2.85313935]
[1773223094181,10.615,84.775,84.73,2.85313935]
[1773223094482,10.614,84.782,84.74,2.85313935]
[1773223094982,10.616,84.77,84.74,2.85313935]
[1773223095581,10.616,84.77,84.73,2.85313935]
[1773223095975,9.71178765,84.789,84.73,2.85313935]
[1773223096179,2.85313935,84.79,84.73,2.85313935]
[1773223096384,9.70838747,84.789,84.73,2.85313935]
[1773223096579,2.85313935,84.79,84.73,2.85313935]
[1773223096884,2.85313935,84.78,84.73,2.85313935]
[1773223097481,35.4,84.799,84.72,2.85313935]
[1773223097687,2.85313935,84.76,84.71,2.85313935]
[1773223097987,35.4,84.795,84.71,2.85313935]
[1773223098189,35.4,84.787,84.72,2.85313935]
[1773223098389,2.85313935,84.78,84.72,2.85313935]
[1773223098588,2.85313935,84.77,84.72,2.85313935]
[1773223099389,10.618,84.754,84.72,2.85313935]
[1773223099790,10.618,84.754,84.71,2.85313935]
[1773223099991,10.618,84.754,84.711,10.623]
[1773223103591,2.85313935,84.74,84.68,2.85313935]
[1773223103890,35.4,84.774,84.68,2.85313935]
[1773223104086,10.621,84.729,84.693,10.626]
[1773223105291,10.621,84.729,84.69,2.85313935]
[1773223106291,10.62,84.736,84.691,10.626]
[1773223106491,2.85313935,84.75,84.7,2.85313935]
[1773223107386,2.85313935,84.75,84.701,10.625]
[1773223108592,10.62,84.738,84.701,10.625]
[1773223110290,2.85313935,84.76,84.71,2.85313935]
[1773223110495,2.85313935,84.76,84.701,11.84]
[1773223111492,10.619,84.747,84.71,10.623]
[1773223112995,10.618,84.754,84.715,10.623]
[1773223113392,10.621,84.734,84.695,11.84]
[1773223113597,10.621,84.734,84.7,2.85161062]
[1773223113800,2.85161062,84.75,84.7,2.85161062]
[1773223114396,0.33509671,84.729,84.7,2.85161062]
[1773223114794,0.33509671,84.729,84.706,10.624]
[1773223115295,2.85161062,84.76,84.706,10.624]
[1773223115701,10.619,84.743,84.706,10.624]
[1773223116893,10.62,84.737,84.7,13.47661062]
[1773223119601,2.85161062,84.75,84.7,2.85161062]
[1773223120495,10.62,84.735,84.693,10.625]
[1773223120802,2.85161062,84.74,84.69,2.85161062]
[1773223121003,2.85161062,84.74,84.661,21.26]
[1773223121004,2.85161062,84.74,84.689,11.84]
[1773223121307,2.85161062,84.74,84.684,11.84]
[1773223122103,10.622,84.724,84.69,10.626]
[1773223122406,10.622,84.724,84.684,11.84]
[1773223123506,10.622,84.724,84.685,10.626]
[1773223124002,2.85161062,84.75,84.7,2.85161062]
[1773223125000,2.85161062,84.75,84.69,2.85161062]
[1773223125504,2.85161062,84.75,84.702,10.624]
[1773223125704,2.85161062,84.76,84.702,10.624]
[1773223126000,10.619,84.747,84.71,2.85161062]
[1773223126600,10.619,84.747,84.7,2.85161062]
[1773223128407,10.619,84.747,84.705,10.624]
[1773223130910,35.4,84.785,84.714,10.623]
[1773223131113,2.85161062,84.78,84.72,2.85161062]
[1773223131410,9.7277788,84.779,84.72,2.85161062]
[1773223131610,9.7277788,84.778,84.72,2.85161062]
[1773223131811,2.85161062,84.78,84.72,2.85161062]
[1773223132106,9.72792908,84.779,84.72,2.85161062]
[1773223132304,9.72792908,84.778,84.73,2.85161062]
[1773223132510,10.616,84.769,84.73,2.85161062]
[1773223132711,10.616,84.769,84.727,10.621]
[1773223134815,10.615,84.777,84.733,10.62]
[1773223135115,2.85161062,84.78,84.73,2.85161062]
[1773223135308,2.85161062,84.78,84.74,2.85161062]
[1773223135511,11.84,84.812,84.74,2.85161062]
[1773223135512,10.615,84.779,84.74,2.85161062]
[1773223138110,10.615,84.779,84.738,10.62]
[1773223139719,10.615,84.779,84.74,2.85161062]
[1773223140018,2.85161062,84.79,84.74,2.85161062]
[1773223140317,9.72379621,84.789,84.74,2.85161062]
[1773223140518,9.72379621,84.788,84.74,2.85161062]
[1773223140719,9.72379621,84.787,84.74,2.85161062]
[1773223140919,2.85161062,84.79,84.74,2.85161062]
[1773223141218,10.615,84.777,84.74,2.85161062]
[1773223142316,10.614,84.784,84.741,10.619]
[1773223142719,2.85161062,84.79,84.741,10.619]
[1773223143824,2.85161062,84.8,84.741,10.619]
[1773223144024,10.614,84.783,84.75,2.85161062]
[1773223144523,10.614,84.783,84.746,10.619]
[1773223146925,10.614,84.789,84.746,10.619]
[1773223147121,10.614,84.789,84.752,10.618]
[1773223151823,2.85161062,84.79,84.74,2.85161062]
[1773223152023,2.85161062,84.79,84.73,11.84]
[1773223152024,2.85161062,84.79,84.73,2.85161062]
[1773223152227,2.85161062,84.79,84.729,11.84]
[1773223152228,2.85161062,84.79,84.74,2.85161062]
[1773223153135,2.85161062,84.79,84.743,10.619]
[1773223154336,10.614,84.785,84.743,10.619]
[1773223157338,10.614,84.788,84.75,10.618]
[1773223157638,10.614,84.788,84.74,2.85161062]
[1773223159439,10.614,84.788,84.743,10.619]
[1773223165232,10.614,84.783,84.743,10.619]
[1773223165442,2.85161062,84.79,84.743,10.619]
[1773223166441,10.615,84.778,84.743,10.619]
[1773223167241,10.614,84.785,84.743,10.619]
[1773223167441,10.614,84.785,84.749,10.619]
[1773223169546,2.85161062,84.79,84.74,2.85161062]
[1773223170246,10.613,84.795,84.748,10.619]
[1773223170444,10.613,84.795,84.74,2.85161062]
[1773223171742,10.613,84.795,84.75,2.85161062]